fUSD/lending_fUSD_20250606
["ID","MTS","AMOUNT","RATE_DAILY","PERIOD"]
[364675156,1749195078663,-191.36473,0.00030657,7]
[364675157,1749195078673,-1697.41,0.00030657,7]
[364675158,1749195078683,-191.36473,0.00030657,7]
[364675159,1749195078693,-191.36473,0.00030657,7]
[364675160,1749195078702,-151.0,0.00030657,7]
[364675161,1749195078713,-480.0,0.00030657,7]
[364675162,1749195078723,-1684.21,0.00030657,7]
[364675163,1749195078733,-627.99,0.00030657,7]
[364675164,1749195078742,-2000.000568,0.00030657,7]
[364675165,1749195078753,-480.0,0.00030657,7]
[364675166,1749195078762,-480.0,0.00030657,7]
[364675167,1749195078772,-654.73,0.00030657,7]
[364675168,1749195078782,-751.32,0.00030657,7]
[364675169,1749195078792,-480.0,0.00030657,7]
[364675170,1749195078803,-480.0,0.00030657,7]
[364675171,1749195078814,-873.28,0.00030657,7]
[364675172,1749195078824,-480.0,0.00030657,7]
[364675173,1749195078833,-480.0,0.00030657,7]
[364675174,1749195078842,-1201.48,0.00030657,7]
[364675175,1749195078853,-253.58696118,0.00030657,7]
[364675176,1749195078862,-480.0,0.00030657,7]
[364675177,1749195078872,-480.0,0.00030657,7]
[364675178,1749195078883,-480.0,0.00030657,7]
[364675179,1749195078892,-480.0,0.00030657,7]
[364675180,1749195078903,-864.22,0.00030657,7]
[364675181,1749195078912,-791.03,0.00030657,7]
[364675182,1749195078922,-480.0,0.00030657,7]
[364675183,1749195078931,-480.0,0.00030657,7]
[364675184,1749195078942,-480.0,0.00030657,7]
[364675185,1749195078952,-480.0,0.00030657,7]
[364675186,1749195078961,-1004.71,0.00030657,7]
[364675187,1749195078971,-863.38,0.00030657,7]
[364675188,1749195078981,-1800.3,0.00030657,7]
[364675189,1749195078990,-480.0,0.00030657,7]
[364675190,1749195079000,-1214.39,0.00030657,7]
[364675191,1749195079009,-480.0,0.00030657,7]
[364675192,1749195079019,-480.0,0.00030657,7]
[364675193,1749195079029,-508.96,0.00030657,7]
[364675194,1749195079038,-397.16747098,0.00030657,7]
[364675195,1749195079048,-480.0,0.00030657,7]
[364675196,1749195079057,-1103.57,0.00030657,7]
[364675197,1749195079066,-480.0,0.00030657,7]
[364675198,1749195079076,-480.0,0.00030657,7]
[364675199,1749195079085,-668.08,0.00030657,7]
[364675200,1749195079095,-1977.82,0.00030657,7]
[364675201,1749195079104,-480.0,0.00030657,7]
[364675202,1749195079114,-480.0,0.00030657,7]
[364675203,1749195079124,-480.0,0.00030657,7]
[364675204,1749195079134,-480.0,0.00030657,7]
[364675205,1749195079144,-480.0,0.00030657,7]
[364675206,1749195079154,-1493.9,0.00030657,7]
[364675207,1749195079164,-480.0,0.00030657,7]
[364675208,1749195079175,-480.0,0.00030657,7]
[364675209,1749195079184,-480.0,0.00030657,7]
[364675210,1749195079194,-1437.75,0.00030657,7]
[364675211,1749195079203,-807.4,0.00030657,7]
[364675212,1749195079212,-480.0,0.00030657,7]
[364675213,1749195079222,-1344.78,0.00030657,7]
[364675214,1749195079231,-608.92,0.00030657,7]
[364675215,1749195079241,-480.0,0.00030657,7]
[364675216,1749195079251,-1484.88,0.00030657,7]
[364675217,1749195079261,-1083.59,0.00030657,7]
[364675218,1749195079271,-480.0,0.00030657,7]
[364675219,1749195079280,-151.0,0.00030657,7]
[364675220,1749195079290,-151.0,0.00030657,7]
[364675221,1749195079299,-480.0,0.00030657,7]
[364675222,1749195079309,-507.16,0.00030657,7]
[364675223,1749195079319,-480.0,0.00030657,7]
[364675224,1749195079328,-550.14,0.00030657,7]
[364675225,1749195079338,-480.0,0.00030657,7]
[364675226,1749195079348,-568.01136989,0.00030657,7]
[364675227,1749195079358,-480.0,0.00030657,7]
[364675228,1749195079368,-480.0,0.00030657,7]
[364675229,1749195079379,-1226.95,0.00030657,7]
[364675230,1749195079390,-480.0,0.00030657,7]
[364675231,1749195079400,-480.0,0.00030657,7]
[364675232,1749195079412,-2114.94,0.00030657,7]
[364675233,1749195079423,-480.0,0.00030657,7]
[364675234,1749195079433,-480.0,0.00030657,7]
[364675235,1749195079443,-583.88113699,0.00030657,7]
[364675236,1749195079453,-176.306048,0.00030657,7]
[364675237,1749195079464,-176.306048,0.00030657,7]
[364675238,1749195079474,-735.75,0.00030657,7]
[364675239,1749195079485,-877.87,0.00030657,7]
[364675240,1749195079496,-176.306048,0.00030657,7]
[364675241,1749195079506,-1277.14,0.00030657,7]
[364675242,1749195079516,-176.306048,0.00030657,7]
[364675243,1749195079526,-480.0,0.00030657,7]
[364675244,1749195079536,-609.30085438,0.00030657,7]
[364675245,1749195079546,-480.0,0.00030657,7]
[364675246,1749195079555,-480.0,0.00030657,7]
[364675247,1749195079565,-480.0,0.00030657,7]
[364675248,1749195079576,-480.0,0.00030657,7]
[364675249,1749195079585,-1290.57,0.00030657,7]
[364675250,1749195079595,-1271.05,0.00030657,7]
[364675251,1749195079605,-165.491368,0.00030657,7]
[364675252,1749195079615,-165.491368,0.00030657,7]
[364675253,1749195079624,-826.56,0.00030657,7]
[364675254,1749195079633,-480.0,0.00030657,7]
[364675255,1749195079643,-480.0,0.00030657,7]
[364675256,1749195079653,-631.37,0.00030657,7]
[364675257,1749195079663,-165.491368,0.00030657,7]
[364675258,1749195079673,-229.396533,0.00030657,7]
[364675259,1749195079683,-165.491368,0.00030657,7]
[364675260,1749195079693,-229.396533,0.00030657,7]
[364675261,1749195079703,-480.0,0.00030657,7]
[364675262,1749195079713,-970.2,0.00030657,7]
[364675263,1749195079722,-229.396533,0.00030657,7]
[364675264,1749195079731,-229.396533,0.00030657,7]
[364675265,1749195079741,-480.0,0.00030657,7]
[364675266,1749195079751,-2539.38,0.00030657,7]
[364675267,1749195079760,-1542.51,0.00030657,7]
[364675268,1749195079770,-151.0,0.00030657,7]
[364675269,1749195079779,-151.0,0.00030657,7]
[364675270,1749195079789,-480.0,0.00030657,7]
[364675271,1749195079799,-480.0,0.00030657,7]
[364675272,1749195079811,-1000.0,0.00030657,21]
[364675273,1749195079820,-1163.68,0.00030657,7]
[364675274,1749195079830,-480.0,0.00030657,7]
[364675275,1749195079839,-151.0,0.00030657,7]
[364675276,1749195079850,-151.0,0.00030657,7]
[364675277,1749195079859,-858.39,0.00030657,7]
[364675278,1749195079869,-914.71,0.00030657,7]
[364675279,1749195079879,-2156.64,0.00030657,7]
[364675280,1749195079889,-915.61,0.00030657,7]
[364675281,1749195080075,-829.68,0.00030657,7]
[364675282,1749195080086,-827.97,0.00030657,7]
[364675283,1749195080095,-480.0,0.00030657,7]
[364675284,1749195080104,-480.0,0.00030657,7]
[364675285,1749195080114,-480.0,0.00030657,7]
[364675286,1749195080124,-1713.66,0.00030657,7]
[364675287,1749195080134,-585.77,0.00030657,7]
[364675288,1749195080144,-480.0,0.00030657,7]
[364675289,1749195080155,-498.36593938,0.00030657,7]
[364675290,1749195080165,-739.36,0.00030657,7]
[364675291,1749195080175,-876.27,0.00030657,7]
[364675292,1749195080184,-5400.04,0.00030657,7]
[364675293,1749195080194,-480.0,0.00030657,7]
[364675294,1749195080203,-480.0,0.00030657,7]
[364675295,1749195080213,-443.46262265,0.00030657,2]
[364675296,1749195080223,-2278.3,0.00030657,7]
[364675297,1749195080233,-516.58,0.00030657,7]
[364675298,1749195080242,-1129.21,0.00030657,7]
[364675299,1749195080251,-1447.61,0.00030657,7]
[364675300,1749195080261,-480.0,0.00030657,7]
[364675301,1749195080270,-480.0,0.00030657,7]
[364675302,1749195080279,-897.4,0.00030657,7]
[364675303,1749195080289,-1119.97,0.00030657,7]
[364675304,1749195080298,-6870.87,0.00030657,7]
[364675305,1749195080307,-156.547574,0.00030657,7]
[364675306,1749195080317,-480.0,0.00030657,7]
[364675307,1749195080326,-480.0,0.00030657,7]
[364675308,1749195080335,-2323.71,0.00030657,7]
[364675309,1749195080344,-2610.15,0.00030657,7]
[364675310,1749195080354,-480.0,0.00030657,7]
[364675311,1749195080363,-1362.71,0.00030657,7]
[364675312,1749195080373,-637.38,0.00030657,7]
[364675313,1749195080382,-650.21,0.00030657,7]
[364675314,1749195080391,-2333.08,0.00030657,7]
[364675315,1749195080401,-1310.63,0.00030657,7]
[364675316,1749195080411,-639.4,0.00030657,7]
[364675317,1749195080421,-1535.375151,0.00030657,7]
[364675318,1749195080430,-1535.375151,0.00030657,7]
[364675319,1749195080440,-175.82389585,0.00030657,7]
[364675320,1749195080450,-480.0,0.00030657,7]
[364675321,1749195080460,-588.89,0.00030657,7]
[364675322,1749195080470,-3922.8,0.00030657,7]
[364675323,1749195080479,-836.03,0.00030657,7]
[364675324,1749195080489,-480.0,0.00030657,7]
[364675325,1749195080499,-1535.375151,0.00030657,7]
[364675326,1749195080509,-1535.375151,0.00030657,7]
[364675327,1749195080518,-480.0,0.00030657,7]
[364675328,1749195080528,-1666.57,0.00030657,7]
[364675329,1749195080538,-533.99,0.00030657,7]
[364675330,1749195080548,-480.0,0.00030657,7]
[364675331,1749195080557,-480.0,0.00030657,7]
[364675332,1749195080567,-1353.76,0.00030657,7]
[364675333,1749195080577,-480.0,0.00030657,7]
[364675334,1749195080586,-1524.78,0.00030657,7]
[364675335,1749195080596,-2057.71,0.00030657,7]
[364675336,1749195080605,-1978.82,0.00030657,7]
[364675337,1749195080615,-3977.08,0.00030657,7]
[364675338,1749195080624,-635.04,0.00030657,7]
[364675339,1749195080633,-665.52,0.00030657,7]
[364675340,1749195080643,-1908.77,0.00030657,7]
[364675341,1749195080653,-10873.55,0.00030657,7]
[364675342,1749195080662,-2487.41,0.00030657,7]
[364675343,1749195080672,-1758.02,0.00030657,7]
[364675344,1749195080682,-506.13924341,0.00030657,7]
[364675345,1749195080691,-492.39314313,0.00030657,7]
[364675346,1749195080700,-480.0,0.00030657,7]
[364675347,1749195080710,-480.0,0.00030657,7]
[364675348,1749195080720,-2387.99,0.00030657,7]
[364675349,1749195080730,-2639.99,0.00030657,7]
[364675350,1749195080740,-1125.45,0.00030657,7]
[364675351,1749195080753,-312.28744927,0.00030657,7]
[364675352,1749195080763,-493.12598187,0.00030657,7]
[364675353,1749195080772,-1254.76,0.00030657,7]
[364675354,1749195080783,-480.0,0.00030657,7]
[364675355,1749195080792,-791.42,0.00030657,7]
[364675356,1749195080803,-947.63,0.00030657,7]
[364675357,1749195080813,-4581.4,0.00030657,7]
[364675358,1749195080823,-514.28,0.00030657,7]
[364675359,1749195080832,-2500.36,0.00030657,7]
[364675360,1749195080842,-480.0,0.00030657,7]
[364675361,1749195080852,-1679.3,0.00030657,7]
[364675362,1749195080861,-1666.44,0.00030657,7]
[364675363,1749195080871,-576.11,0.00030657,7]
[364675364,1749195080883,-2002.83,0.00030657,7]
[364675365,1749195080894,-1000.0,0.00030657,7]
[364675366,1749195080903,-2964.95,0.00030657,7]
[364675367,1749195080913,-1463.84,0.00030657,7]
[364675368,1749195080923,-480.0,0.00030657,7]
[364675369,1749195080932,-480.0,0.00030657,7]
[364675370,1749195080942,-2141.33,0.00030657,7]
[364675371,1749195080951,-1459.06,0.00030657,7]
[364675372,1749195080960,-3269.76,0.00030657,7]
[364675373,1749195080970,-1061.57,0.00030657,7]
[364675374,1749195080979,-2685.06,0.00030657,7]
[364675375,1749195080989,-480.0,0.00030657,7]
[364675376,1749195081000,-5962.32,0.00030657,7]
[364675377,1749195081009,-4171.06,0.00030657,7]
[364675378,1749195081019,-848.41,0.00030657,7]
[364675379,1749195081028,-448.366204,0.00030657,7]
[364675380,1749195081038,-448.366204,0.00030657,7]
[364675381,1749195081047,-1102.24,0.00030657,7]
[364675382,1749195081057,-448.366204,0.00030657,7]
[364675383,1749195081067,-2463.45,0.00030657,7]
[364675384,1749195081077,-448.366204,0.00030657,7]
[364675385,1749195081087,-493.16,0.00030657,7]
[364675386,1749195081096,-1462.66,0.00030657,2]
[364675387,1749195081107,-907.782064,0.00030657,7]
[364675388,1749195081116,-577.1,0.00030657,7]
[364675389,1749195081128,-907.782064,0.00030657,7]
[364675390,1749195081140,-1324.81,0.00030657,7]
[364675391,1749195081151,-2024.69,0.00030657,7]
[364675392,1749195081162,-17017.79,0.00030657,7]
[364675393,1749195081172,-2126.16,0.00030657,7]
[364675394,1749195081181,-159.258411,0.00030657,7]
[364675395,1749195081191,-907.782064,0.00030657,7]
[364675396,1749195081203,-1317.38,0.00030657,7]
[364675397,1749195081212,-907.782064,0.00030657,7]
[364675398,1749195081221,-4422.82,0.00030657,7]
[364675399,1749195081231,-1523.3,0.00030657,7]
[364675400,1749195081240,-480.0,0.00030657,7]
[364675401,1749195081249,-3713.24,0.00030657,7]
[364675402,1749195081259,-277.15277029,0.00030657,7]
[364675403,1749195081268,-151.0,0.00030657,7]
[364675404,1749195081277,-151.0,0.00030657,7]
[364675405,1749195081287,-1166.4,0.00030657,7]
[364675406,1749195081297,-1334.57,0.00030657,7]
[364675407,1749195081307,-480.0,0.00030657,7]
[364675408,1749195081317,-480.0,0.00030657,7]
[364675409,1749195081327,-984.05,0.00030657,7]
[364675410,1749195081337,-2104.79,0.00030657,7]
[364675411,1749195081348,-6223.16,0.00030657,7]
[364675412,1749195081358,-480.0,0.00030657,7]
[364675413,1749195081368,-180.094485,0.00030657,7]
[364675414,1749195081378,-1264.89,0.00030657,7]
[364675415,1749195081388,-2602.39,0.00030657,7]
[364675416,1749195081398,-1207.83,0.00030657,7]
[364675417,1749195081410,-496.54214851,0.00030657,7]
[364675418,1749195081420,-12037.38,0.00030657,7]
[364675419,1749195081431,-649.09,0.00030657,7]
[364675420,1749195081440,-480.0,0.00030657,7]
[364675421,1749195081450,-1829.73,0.00030657,7]
[364675422,1749195081460,-239.241534,0.00030657,7]
[364675423,1749195081469,-1014.46,0.00030657,7]
[364675424,1749195081479,-1745.74,0.00030657,7]
[364675425,1749195081489,-239.241534,0.00030657,7]
[364675426,1749195081501,-480.0,0.00030657,7]
[364675427,1749195081510,-480.0,0.00030657,7]
[364675428,1749195081520,-239.241534,0.00030657,7]
[364675429,1749195081530,-239.241534,0.00030657,7]
[364675430,1749195081540,-1071.48,0.00030657,7]
[364675431,1749195081550,-480.0,0.00030657,7]
[364675432,1749195081560,-480.0,0.00030657,7]
[364675433,1749195081570,-1415.9,0.00030657,7]
[364675434,1749195081580,-609.11,0.00030657,7]
[364675435,1749195081590,-10675.65,0.00030657,7]
[364675436,1749195081600,-489.2446573,0.00030657,7]
[364675437,1749195081610,-480.0,0.00030657,7]
[364675438,1749195081619,-2106.24,0.00030657,7]
[364675439,1749195081628,-892.65,0.00030657,7]
[364675440,1749195081638,-2026.78,0.00030657,7]
[364675441,1749195081647,-3353.82,0.00030657,7]
[364675442,1749195081658,-1044.12,0.00030657,7]
[364675443,1749195081668,-498.96160582,0.00030657,7]
[364675444,1749195081678,-406.69,0.00030657,7]
[364675445,1749195081689,-2056.04,0.00030657,7]
[364675446,1749195081699,-480.0,0.00030657,7]
[364675447,1749195081708,-1485.03,0.00030657,7]
[364675448,1749195081718,-894.72,0.00030657,7]
[364675449,1749195081727,-5331.78,0.00030657,7]
[364675450,1749195081737,-5244.54,0.00030657,7]
[364675451,1749195081747,-151.0,0.00030657,7]
[364675452,1749195081756,-480.0,0.00030657,7]
[364675453,1749195081766,-151.0,0.00030657,7]
[364675454,1749195081775,-151.0,0.00030657,7]
[364675455,1749195081785,-1252.03,0.00030657,7]
[364675456,1749195081794,-151.0,0.00030657,7]
[364675457,1749195081804,-496.19,0.00030657,7]
[364675458,1749195081814,-2497.24,0.00030657,7]
[364675459,1749195081824,-1074.2,0.00030657,7]
[364675460,1749195081833,-480.0,0.00030657,7]
[364675461,1749195081843,-151.0,0.00030657,7]
[364675462,1749195081854,-204.771268,0.00030657,7]
[364675463,1749195081864,-157.588458,0.00030657,7]
[364675464,1749195081874,-480.0,0.00030657,7]
[364675465,1749195081885,-480.0,0.00030657,7]
[364675466,1749195081895,-480.0,0.00030657,7]
[364675467,1749195081906,-2043.06,0.00030657,7]
[364675468,1749195081916,-204.771268,0.00030657,7]
[364675469,1749195081925,-480.0,0.00030657,7]
[364675470,1749195081935,-480.0,0.00030657,7]
[364675471,1749195081945,-480.0,0.00030657,7]
[364675472,1749195081954,-1410.64,0.00030657,7]
[364675473,1749195081964,-721.27,0.00030657,7]
[364675474,1749195081974,-480.0,0.00030657,7]
[364675475,1749195081983,-735.38,0.00030657,7]
[364675476,1749195081993,-1593.16,0.00030657,7]
[364675477,1749195082003,-1896.04,0.00030657,7]
[364675478,1749195082012,-954.54,0.00030657,7]
[364675479,1749195082022,-5092.66,0.00030657,7]
[364675480,1749195082032,-453.537922,0.00030657,7]
[364675481,1749195082042,-480.0,0.00030657,7]
[364675482,1749195082052,-453.537922,0.00030657,7]
[364675483,1749195082064,-482.10954878,0.00030657,7]
[364675484,1749195082073,-480.0,0.00030657,7]
[364675485,1749195082082,-453.537922,0.00030657,7]
[364675486,1749195082091,-732.66,0.00030657,7]
[364675487,1749195082101,-480.0,0.00030657,7]
[364675488,1749195082111,-453.537922,0.00030657,7]
[364675489,1749195082121,-480.0,0.00030657,7]
[364675490,1749195082130,-2684.8,0.00030657,7]
[364675491,1749195082140,-690.02,0.00030657,7]
[364675492,1749195082149,-749.27,0.00030657,7]
[364675493,1749195082160,-1631.58,0.00030657,7]
[364675494,1749195082170,-491.32292481,0.00030657,7]
[364675495,1749195082179,-621.64,0.00030657,7]
[364675496,1749195082189,-535.31,0.00030657,7]
[364675497,1749195082199,-1384.95,0.00030657,7]
[364675498,1749195082208,-1562.21,0.00030657,7]
[364675499,1749195082218,-480.0,0.00030657,7]
[364675500,1749195082227,-18294.64,0.00030657,7]
[364675501,1749195082236,-894.81,0.00030657,7]
[364675502,1749195082246,-1115.23,0.00030657,7]
[364675503,1749195082255,-4575.79,0.00030657,7]
[364675504,1749195082265,-480.0,0.00030657,7]
[364675505,1749195082275,-854.68,0.00030657,7]
[364675506,1749195082284,-480.0,0.00030657,7]
[364675507,1749195082294,-695.12,0.00030657,7]
[364675508,1749195082303,-650.15,0.00030657,7]
[364675509,1749195082313,-586.88,0.00030657,7]
[364675510,1749195082322,-6273.93,0.00030657,7]
[364675511,1749195082332,-784.29,0.00030657,7]
[364675512,1749195082341,-501.87,0.00030657,7]
[364675513,1749195082352,-156.547573,0.00030657,7]
[364675514,1749195082362,-480.0,0.00030657,7]
[364675515,1749195082371,-480.0,0.00030657,7]
[364675516,1749195082381,-480.0,0.00030657,7]
[364675517,1749195082391,-648.911723,0.00030657,7]
[364675518,1749195082400,-1393.37,0.00030657,7]
[364675519,1749195082410,-480.0,0.00030657,7]
[364675520,1749195082420,-480.0,0.00030657,7]
[364675521,1749195082430,-1018.89,0.00030657,7]
[364675522,1749195082440,-2222.98,0.00030657,7]
[364675523,1749195082449,-701.3,0.00030657,7]
[364675524,1749195082459,-648.911725,0.00030657,7]
[364675525,1749195082469,-480.0,0.00030657,7]
[364675526,1749195082478,-838.48,0.00030657,7]
[364675527,1749195082488,-155.152848,0.00030657,7]
[364675528,1749195082499,-2372.89,0.00030657,7]
[364675529,1749195082508,-894.02,0.00030657,7]
[364675530,1749195082518,-7451.07,0.00030657,7]
[364675531,1749195082528,-2119.73,0.00030657,7]
[364675532,1749195082538,-480.0,0.00030657,7]
[364675533,1749195082547,-1031.14,0.00030657,7]
[364675534,1749195082558,-480.0,0.00030657,7]
[364675535,1749195082568,-480.0,0.00030657,7]
[364675536,1749195082577,-480.0,0.00030657,7]
[364675537,1749195082587,-155.152856,0.00030657,7]
[364675538,1749195082597,-953.26,0.00030657,7]
[364675539,1749195082607,-545.98,0.00030657,7]
[364675540,1749195082617,-981.45,0.00030657,7]
[364675541,1749195082626,-665.71,0.00030657,7]
[364675542,1749195082636,-1003.28,0.00030657,7]
[364675543,1749195082646,-502.03,0.00030657,7]
[364675544,1749195082657,-599.66,0.00030657,7]
[364675545,1749195082666,-3222.48,0.00030657,7]
[364675546,1749195082676,-642.87,0.00030657,2]
[364675547,1749195082685,-895.35,0.00030657,7]
[364675548,1749195082695,-13954.29,0.00030657,7]
[364675549,1749195082704,-821.63,0.00030657,7]
[364675550,1749195082713,-1239.07,0.00030657,7]
[364675551,1749195082723,-2507.72,0.00030657,7]
[364675552,1749195082732,-21187.12,0.00030657,7]
[364675553,1749195082741,-1029.37,0.00030657,7]
[364675554,1749195082751,-1188.22,0.00030657,7]
[364675555,1749195082761,-1023.07,0.00030657,2]
[364675556,1749195082771,-1061.28,0.00030657,7]
[364675557,1749195082780,-4145.62,0.00030657,7]
[364675558,1749195082790,-497.3887721,0.00030657,7]
[364675559,1749195082800,-585.37,0.00030657,7]
[364675560,1749195082813,-480.0,0.00030657,7]
[364675561,1749195082823,-480.0,0.00030657,7]
[364675562,1749195082833,-225.386893,0.00030657,7]
[364675563,1749195082842,-867.72,0.00030657,7]
[364675564,1749195082852,-81999.01,0.00030657,7]
[364675565,1749195082861,-823.56,0.00030657,7]
[364675566,1749195082871,-225.386893,0.00030657,7]
[364675567,1749195082880,-818.4,0.00030657,7]
[364675568,1749195082889,-480.0,0.00030657,7]
[364675569,1749195082899,-2369.76,0.00030657,7]
[364675570,1749195082909,-883.58,0.00030657,7]
[364675571,1749195082918,-480.0,0.00030657,7]
[364675572,1749195082928,-1357.61,0.00030657,7]
[364675573,1749195082937,-1145.19,0.00030657,7]
[364675574,1749195082947,-1414.72431,0.00030657,7]
[364675575,1749195082956,-480.0,0.00030657,7]
[364675576,1749195082965,-1168.31,0.00030657,7]
[364675577,1749195082974,-225.386893,0.00030657,7]
[364675578,1749195082983,-225.386887,0.00030657,7]
[364675579,1749195083149,-1706.77,0.00030657,7]
[364675580,1749195083175,-1414.724305,0.00030657,7]
[364675581,1749195083184,-500.0,0.00030659,2]
[364675582,1749195083194,-1552.0,0.00030659,2]
[364675583,1749195083203,-1387.0,0.00030659,2]
[364675584,1749195083213,-527.0,0.00030659,2]
[364675585,1749195083223,-419.0,0.00030659,2]
[364675586,1749195083231,-150.0,0.0003066,7]
[364675587,1749195083240,-174.5743876,0.00030667,2]
[364675588,1749195083250,-319.28703344,0.00030669,7]
[364675589,1749195083259,-249.59327405,0.00030669,7]
[364675590,1749195083268,-400.0,0.0003067,2]
[364675591,1749195083278,-150.0,0.00030676,7]
[364675592,1749195083287,-150.0,0.00030678,7]
[364675593,1749195083297,-30566.5850316,0.0003068,2]
[364675594,1749195083307,-1251.9674891,0.0003068,2]
[364675595,1749195083317,-150.0,0.00030682,7]
[364675596,1749195083326,-500.0,0.00030686,2]
[364675597,1749195083335,-1552.0,0.00030686,2]
[364675598,1749195083346,-1387.0,0.00030686,2]
[364675599,1749195083356,-527.0,0.00030686,2]
[364675600,1749195083366,-419.0,0.00030686,2]
[364675601,1749195083375,-7299.44,0.000307,2]
[364675602,1749195083385,-500.0,0.00030701,3]
[364675603,1749195083395,-319.28703344,0.00030703,7]
[364675604,1749195083405,-249.59327405,0.00030703,7]
[364675605,1749195083415,-500.0,0.00030714,2]
[364675606,1749195083425,-1552.0,0.00030714,2]
[364675607,1749195083435,-1387.0,0.00030714,2]
[364675608,1749195083445,-527.0,0.00030714,2]
[364675609,1749195083455,-419.0,0.00030714,2]
[364675610,1749195083464,-150.0,0.00030717,7]
[364675611,1749195083474,-150.0,0.00030719,7]
[364675612,1749195083484,-988.10353959,0.00030721,5]
[364675613,1749195083494,-1000.0,0.00030721,5]
[364675614,1749195083504,-1000.0,0.00030721,5]
[364675615,1749195083515,-1000.0,0.00030721,5]
[364675616,1749195083525,-156.12940259,0.00030721,2]
[364675617,1749195083534,-150.0,0.00030721,7]
[364675618,1749195083544,-150.0,0.00030723,7]
[364675619,1749195083554,-4257.2465977,0.00030737,2]
[364675620,1749195083564,-319.28703344,0.00030737,7]
[364675621,1749195083573,-249.59327405,0.00030737,7]
[364675622,1749195083583,-500.0,0.00030741,2]
[364675623,1749195083593,-1552.0,0.00030741,2]
[364675624,1749195083604,-1387.0,0.00030741,2]
[364675625,1749195083614,-527.0,0.00030741,2]
[364675626,1749195083624,-419.0,0.00030741,2]
[364675627,1749195083633,-150.0,0.00030751,7]
[364675628,1749195083643,-150.0,0.00030756,7]
[364675629,1749195083652,-15197.7531534,0.00030758,2]
[364675630,1749195083663,-204.771268,0.00030758,7]
[364675631,1749195083673,-204.771269,0.00030758,7]
[364675632,1749195083683,-150.0,0.00030764,7]
[364675633,1749195083692,-500.0,0.00030769,2]
[364675634,1749195083702,-1552.0,0.00030769,2]
[364675635,1749195083711,-1387.0,0.00030769,2]
[364675636,1749195083721,-527.0,0.00030769,2]
[364675637,1749195083731,-419.0,0.00030769,2]
[364675638,1749195083740,-400.0,0.0003077,2]
[364675639,1749195083750,-654.64727684,0.0003077,2]
[364675640,1749195083759,-319.28703344,0.00030772,7]
[364675641,1749195083768,-249.59327405,0.00030772,7]
[364675642,1749195083777,-500.0,0.00030772,7]
[364675643,1749195083787,-500.0,0.00030772,7]
[364675644,1749195083798,-150.0,0.00030779,7]
[364675645,1749195083809,-151.0,0.00030779,7]
[364675646,1749195083819,-936.662706,0.00030779,7]
[364675647,1749195083828,-936.662706,0.00030779,7]
[364675648,1749195083839,-151.0,0.00030779,7]
[364675649,1749195083849,-191.36473,0.00030779,7]
[364675650,1749195083859,-191.36473,0.00030779,7]
[364675651,1749195083868,-151.0,0.00030779,7]
[364675652,1749195083878,-151.0,0.00030779,7]
[364675653,1749195083888,-165.491368,0.00030779,7]
[364675654,1749195083898,-165.491368,0.00030779,7]
[364675655,1749195083909,-229.396533,0.00030779,7]